fUSD/lending_fUSD_20250505
["ID","MTS","AMOUNT","RATE_DAILY","PERIOD"]
[359965721,1746452791845,-962.09,0.00019896,2]
[359965722,1746452791868,-450.0,0.00019896,2]
[359965723,1746452791891,-450.0,0.00019896,2]
[359965724,1746452791913,-480.76007786,0.00019896,2]
[359965725,1746452791934,-450.0,0.00019896,2]
[359965726,1746452791956,-450.0,0.00019896,2]
[359965727,1746452791982,-450.0,0.00019896,2]
[359965728,1746452792003,-450.0,0.00019896,2]
[359965729,1746452792025,-450.0,0.00019896,2]
[359965730,1746452792048,-1690.51,0.00019896,2]
[359965731,1746452792070,-450.0,0.00019896,2]
[359965732,1746452792092,-450.0,0.00019896,2]
[359965733,1746452792118,-450.0,0.00019896,2]
[359965734,1746452792141,-450.0,0.00019896,2]
[359965735,1746452792166,-450.0,0.00019896,2]
[359965736,1746452792189,-450.0,0.00019896,2]
[359965737,1746452792211,-703.15,0.00019896,2]
[359965738,1746452792234,-450.0,0.00019896,2]
[359965739,1746452792256,-474.75625511,0.00019896,2]
[359965740,1746452792277,-721.46,0.00019896,2]
[359965741,1746452792299,-450.0,0.00019896,2]
[359965742,1746452792321,-450.0,0.00019896,2]
[359965743,1746452792342,-15415.85,0.00019896,2]
[359965744,1746452792363,-509.42,0.00019896,2]
[359965745,1746452792385,-711.65,0.00019896,2]
[359965746,1746452792408,-450.0,0.00019896,2]
[359965747,1746452792430,-450.0,0.00019896,2]
[359965748,1746452792452,-450.0,0.00019896,2]
[359965749,1746452792477,-1273.85,0.00019896,2]
[359965750,1746452792499,-450.0,0.00019896,2]
[359965751,1746452792522,-450.0,0.00019896,2]
[359965752,1746452792544,-450.0,0.00019896,2]
[359965753,1746452792566,-612.26,0.00019896,2]
[359965754,1746452792588,-450.0,0.00019896,2]
[359965755,1746452792608,-450.0,0.00019896,2]
[359965756,1746452792629,-450.0,0.00019896,2]
[359965757,1746452792650,-450.0,0.00019896,2]
[359965758,1746452792672,-450.0,0.00019896,2]
[359965759,1746452792695,-888.29,0.00019896,2]
[359965760,1746452792718,-450.0,0.00019896,2]
[359965761,1746452792739,-450.0,0.00019896,2]
[359965762,1746452792760,-450.0,0.00019896,2]
[359965763,1746452792782,-450.0,0.00019896,2]
[359965764,1746452792805,-450.0,0.00019896,2]
[359965765,1746452792828,-450.0,0.00019896,2]
[359965766,1746452792849,-450.0,0.00019896,2]
[359965767,1746452792874,-450.0,0.00019896,2]
[359965768,1746452792896,-543.46,0.00019896,2]
[359965769,1746452792918,-450.0,0.00019896,2]
[359965770,1746452792941,-450.0,0.00019896,2]
[359965771,1746452792962,-450.0,0.00019896,2]
[359965772,1746452792987,-555.62,0.00019896,2]
[359965773,1746452793009,-450.0,0.00019896,2]
[359965774,1746452793031,-450.0,0.00019896,2]
[359965775,1746452793054,-548.42,0.00019896,2]
[359965776,1746452793077,-517.09,0.00019896,2]
[359965777,1746452793104,-450.0,0.00019896,2]
[359965778,1746452793126,-450.0,0.00019896,2]
[359965779,1746452793150,-500.0,0.00019896,2]
[359965780,1746452793174,-450.0,0.00019896,2]
[359965781,1746452793199,-450.0,0.00019896,2]
[359965782,1746452793225,-450.0,0.00019896,2]
[359965783,1746452793249,-450.0,0.00019896,2]
[359965784,1746452793273,-450.0,0.00019896,2]
[359965785,1746452793296,-450.0,0.00019897,2]
[359965786,1746452793319,-450.0,0.00019897,2]
[359965787,1746452793341,-450.0,0.00019897,2]
[359965788,1746452793363,-450.0,0.00019897,2]
[359965789,1746452793387,-450.0,0.00019897,2]
[359965790,1746452793411,-755.28,0.00019897,2]
[359965791,1746452793433,-324.99534254,0.00019897,2]
[359965792,1746452793464,-450.0,0.00019897,2]
[359965793,1746452793490,-260.07111918,0.00019897,2]
[359965794,1746452793513,-450.0,0.00019897,2]
[359965795,1746452793538,-450.0,0.00019897,2]
[359965796,1746452793560,-450.0,0.00019897,2]
[359965797,1746452793582,-450.0,0.00019897,2]
[359965798,1746452793604,-450.0,0.00019897,2]
[359965799,1746452793628,-450.0,0.00019897,2]
[359965800,1746452793651,-450.0,0.00019897,2]
[359965801,1746452793675,-450.0,0.00019897,2]
[359965802,1746452793696,-450.0,0.00019897,2]
[359965803,1746452793720,-459.0907838,0.00019897,2]
[359965804,1746452793743,-450.0,0.00019897,2]
[359965805,1746452793768,-703.15,0.00019897,2]
[359965806,1746452793792,-450.0,0.00019897,2]
[359965807,1746452793815,-721.46,0.00019897,2]
[359965808,1746452793837,-450.0,0.00019897,2]
[359965809,1746452793859,-450.0,0.00019897,2]
[359965810,1746452793883,-711.65,0.00019897,2]
[359965811,1746452793906,-450.0,0.00019897,2]
[359965812,1746452793928,-450.0,0.00019897,2]
[359965813,1746452793952,-612.26,0.00019897,2]
[359965814,1746452793982,-450.0,0.00019897,2]
[359965815,1746452794005,-450.0,0.00019897,2]
[359965816,1746452794029,-888.29,0.00019897,2]
[359965817,1746452794053,-450.0,0.00019897,2]
[359965818,1746452794077,-450.0,0.00019897,2]
[359965819,1746452794102,-450.0,0.00019897,2]
[359965820,1746452794126,-450.0,0.00019897,2]
[359965821,1746452794149,-450.0,0.00019897,2]
[359965822,1746452794173,-450.0,0.00019897,2]
[359965823,1746452794196,-450.0,0.00019897,2]
[359965824,1746452794223,-572.36824906,0.00019897,2]
[359965825,1746452794247,-450.0,0.00019897,2]
[359965826,1746452794272,-450.0,0.00019897,2]
[359965827,1746452794295,-450.0,0.00019897,2]
[359965828,1746452794318,-450.0,0.00019898,2]
[359965829,1746452794341,-450.0,0.00019898,2]
[359965830,1746452794364,-450.0,0.00019898,2]
[359965831,1746452794386,-450.0,0.00019898,2]
[359965832,1746452794409,-450.0,0.00019898,2]
[359965833,1746452794432,-460.70256392,0.00019898,2]
[359965834,1746452794455,-755.28,0.00019898,2]
[359965835,1746452794481,-450.0,0.00019898,2]
[359965836,1746452794507,-450.0,0.00019898,2]
[359965837,1746452794530,-450.0,0.00019898,2]
[359965838,1746452794553,-450.0,0.00019898,2]
[359965839,1746452794577,-450.0,0.00019898,2]
[359965840,1746452794599,-962.09,0.00019898,2]
[359965841,1746452794622,-450.0,0.00019898,2]
[359965842,1746452794644,-450.0,0.00019898,2]
[359965843,1746452794667,-450.0,0.00019898,2]
[359965844,1746452794689,-450.0,0.00019898,2]
[359965845,1746452794717,-450.0,0.00019898,2]
[359965846,1746452794740,-450.0,0.00019898,2]
[359965847,1746452794762,-450.0,0.00019898,2]
[359965848,1746452794784,-450.0,0.00019898,2]
[359965849,1746452794807,-450.0,0.00019898,2]
[359965850,1746452794834,-450.0,0.00019898,2]
[359965851,1746452794857,-450.0,0.00019898,2]
[359965852,1746452794879,-450.0,0.00019898,2]
[359965853,1746452794903,-450.0,0.00019898,2]
[359965854,1746452794926,-450.0,0.00019898,2]
[359965855,1746452794949,-450.0,0.00019898,2]
[359965856,1746452794975,-509.42,0.00019898,2]
[359965857,1746452794998,-450.0,0.00019898,2]
[359965858,1746452795021,-509.00556499,0.00019898,2]
[359965859,1746452795044,-450.0,0.00019898,2]
[359965860,1746452795068,-450.0,0.00019898,2]
[359965861,1746452795090,-450.0,0.00019898,2]
[359965862,1746452795116,-450.0,0.00019898,2]
[359965863,1746452795140,-450.0,0.00019898,2]
[359965864,1746452795164,-450.0,0.00019898,2]
[359965865,1746452795188,-450.0,0.00019898,2]
[359965866,1746452795412,-450.0,0.00019898,2]
[359965867,1746452795479,-450.0,0.00019898,2]
[359965868,1746452795501,-450.0,0.00019898,2]
[359965869,1746452795523,-543.46,0.00019898,2]
[359965870,1746452795545,-450.0,0.00019898,2]
[359965871,1746452795566,-450.0,0.00019898,2]
[359965872,1746452795588,-450.0,0.00019898,2]
[359965873,1746452795609,-450.0,0.00019898,2]
[359965874,1746452795630,-450.0,0.00019898,2]
[359965875,1746452795651,-450.0,0.00019898,2]
[359965876,1746452795672,-450.0,0.00019898,2]
[359965877,1746452795693,-500.0,0.00019898,2]
[359965878,1746452795714,-450.0,0.00019898,2]
[359965879,1746452795738,-450.0,0.00019898,2]
[359965880,1746452795761,-450.0,0.00019898,2]
[359965881,1746452795782,-450.0,0.00019898,2]
[359965882,1746452795803,-450.0,0.00019898,2]
[359965883,1746452795826,-450.0,0.00019899,2]
[359965884,1746452795848,-450.0,0.00019899,2]
[359965885,1746452795871,-450.0,0.00019899,2]
[359965886,1746452795892,-450.0,0.00019899,2]
[359965887,1746452795914,-755.28,0.00019899,2]
[359965888,1746452795937,-450.0,0.00019899,2]
[359965889,1746452795959,-450.0,0.00019899,2]
[359965890,1746452795983,-962.09,0.00019899,2]
[359965891,1746452796005,-450.0,0.00019899,2]
[359965892,1746452796031,-453.35915404,0.00019899,2]
[359965893,1746452796053,-450.0,0.00019899,2]
[359965894,1746452796075,-450.0,0.00019899,2]
[359965895,1746452796101,-450.0,0.00019899,2]
[359965896,1746452796124,-450.0,0.00019899,2]
[359965897,1746452796147,-427.53688655,0.00019899,2]
[359965898,1746452796169,-450.0,0.00019899,2]
[359965899,1746452796190,-450.0,0.00019899,2]
[359965900,1746452796212,-450.0,0.00019899,2]
[359965901,1746452796238,-703.15,0.00019899,2]
[359965902,1746452796260,-450.0,0.00019899,2]
[359965903,1746452796282,-721.46,0.00019899,2]
[359965904,1746452796304,-450.0,0.00019899,2]
[359965905,1746452796329,-450.0,0.00019899,2]
[359965906,1746452796350,-385.99685154,0.00019899,2]
[359965907,1746452796372,-509.42,0.00019899,2]
[359965908,1746452796395,-711.65,0.00019899,2]
[359965909,1746452796417,-493.77099846,0.00019899,2]
[359965910,1746452796439,-450.0,0.00019899,2]
[359965911,1746452796462,-450.0,0.00019899,2]
[359965912,1746452796488,-612.26,0.00019899,2]
[359965913,1746452796512,-450.0,0.00019899,2]
[359965914,1746452796534,-450.0,0.00019899,2]
[359965915,1746452796555,-450.0,0.00019899,2]
[359965916,1746452796577,-888.29,0.00019899,2]
[359965917,1746452796598,-450.0,0.00019899,2]
[359965918,1746452796620,-450.0,0.00019899,2]
[359965919,1746452796642,-450.0,0.00019899,2]
[359965920,1746452796662,-450.0,0.00019899,2]
[359965921,1746452796683,-450.0,0.00019899,2]
[359965922,1746452796704,-450.0,0.00019899,2]
[359965923,1746452796726,-543.46,0.00019899,2]
[359965924,1746452796748,-460.55438561,0.00019899,2]
[359965925,1746452796770,-450.0,0.00019899,2]
[359965926,1746452796792,-450.0,0.00019899,2]
[359965927,1746452796812,-450.0,0.00019899,2]
[359965928,1746452796834,-450.0,0.00019899,2]
[359965929,1746452796856,-450.0,0.00019899,2]
[359965930,1746452796877,-450.0,0.00019899,2]
[359965931,1746452796899,-450.0,0.00019899,2]
[359965932,1746452796922,-450.0,0.00019899,2]
[359965933,1746452796944,-450.0,0.00019899,2]
[359965934,1746452796969,-450.0,0.00019899,2]
[359965935,1746452796991,-450.0,0.00019899,2]
[359965936,1746452797015,-450.0,0.00019899,2]
[359965937,1746452797037,-154.6696637,0.000199,2]
[359965938,1746452797060,-450.0,0.00019922,2]
[359965939,1746452797082,-467.45820844,0.00019922,2]
[359965940,1746452797108,-450.0,0.00019922,2]
[359965941,1746452797131,-450.0,0.00019922,2]
[359965942,1746452797153,-450.0,0.00019922,2]
[359965943,1746452797175,-450.0,0.00019922,2]
[359965944,1746452797198,-450.0,0.00019922,2]
[359965945,1746452797222,-450.0,0.00019922,2]
[359965946,1746452797245,-450.0,0.00019922,2]
[359965947,1746452797268,-1690.51,0.00019922,2]
[359965948,1746452797289,-15415.85,0.00019922,2]
[359965949,1746452797311,-450.0,0.00019922,2]
[359965950,1746452797334,-450.0,0.00019922,2]
[359965951,1746452797357,-1273.85,0.00019922,2]
[359965952,1746452797378,-450.0,0.00019922,2]
[359965953,1746452797401,-993.08,0.00019922,2]
[359965954,1746452797424,-450.0,0.00019922,2]
[359965955,1746452797446,-450.0,0.00019922,2]
[359965956,1746452797470,-450.0,0.00019922,2]
[359965957,1746452797491,-450.0,0.00019922,2]
[359965958,1746452797513,-555.62,0.00019922,2]
[359965959,1746452797534,-450.0,0.00019922,2]
[359965960,1746452797556,-450.0,0.00019922,2]
[359965961,1746452797577,-548.42,0.00019922,2]
[359965962,1746452797599,-450.0,0.00019922,2]
[359965963,1746452797620,-517.09,0.00019922,2]
[359965964,1746452797640,-450.0,0.00019922,2]
[359965965,1746452797661,-550.0,0.00019922,2]
[359965966,1746452797682,-450.0,0.00019922,2]
[359965967,1746452797703,-450.0,0.00019923,2]
[359965968,1746452797729,-450.0,0.00019923,2]
[359965969,1746452797752,-450.0,0.00019923,2]
[359965970,1746452797775,-450.0,0.00019923,2]
[359965971,1746452797799,-993.08,0.00019923,2]
[359965972,1746452797823,-993.08,0.00019923,2]
[359965973,1746452797846,-993.08,0.00019923,2]
[359965974,1746452797869,-450.0,0.00019923,2]
[359965975,1746452797891,-572.6,0.00019923,2]
[359965976,1746452797915,-450.0,0.00019923,2]
[359965977,1746452797938,-80695.79274064,0.00019934,2]
[359965978,1746452797961,-450.0,0.00019934,2]
[359965979,1746452797987,-450.0,0.00019934,2]
[359965980,1746452798009,-450.0,0.00019934,2]
[359965981,1746452798031,-450.0,0.00019934,2]
[359965982,1746452798056,-893.45,0.00019934,2]
[359965983,1746452798077,-450.0,0.00019934,2]
[359965984,1746452798102,-450.0,0.00019934,2]
[359965985,1746452798124,-200.0,0.00019934,2]
[359965986,1746452798148,-450.0,0.00019934,2]
[359965987,1746452798172,-450.0,0.00019934,2]
[359965988,1746452798195,-450.0,0.00019934,2]
[359965989,1746452798221,-450.0,0.00019934,2]
[359965990,1746452798243,-450.0,0.00019934,2]
[359965991,1746452798267,-1690.51,0.00019934,2]
[359965992,1746452798288,-450.0,0.00019934,2]
[359965993,1746452798310,-450.0,0.00019934,2]
[359965994,1746452798332,-703.15,0.00019934,2]
[359965995,1746452798352,-721.46,0.00019934,2]
[359965996,1746452798373,-15415.85,0.00019934,2]
[359965997,1746452798394,-586.14390772,0.00019934,2]
[359965998,1746452800705,500.0,0.00027945,30]
[359965999,1746452800948,500.0,0.00029315,30]
[359966025,1746452852283,3000.0,0.00027397,120]
[359966026,1746452852513,225.34,0.00027397,120]
[359966041,1746453036305,177.045514,0.00018798,2]
[359966042,1746453037248,-1200.0,0.00019666,2]
[359966043,1746453037258,-300.0,0.00019666,2]
[359966044,1746453037268,-49.76071232,0.00019666,2]
[359966045,1746453037359,-250.23928768,0.00019666,2]
[359966046,1746453037369,-316.27666232,0.00019667,2]
[359966047,1746453037418,-2622.02728254,0.00019667,2]
[359966155,1746453039750,-623.5208164,0.00019667,2]
[359966157,1746453039775,-2409.025,0.00019667,2]
[359966215,1746453044312,-414.47234973,0.00019667,2]
[359966216,1746453044323,-13767.12000086,0.00019667,2]
[359966217,1746453044333,-10076.19,0.00019668,2]
[359966218,1746453044342,-10076.19,0.00019676,2]
[359966219,1746453044351,-10076.19,0.00019678,2]
[359966220,1746453044360,-10076.19,0.00019679,2]
[359966221,1746453044369,-10076.19,0.0001968,2]
[359966222,1746453044378,-177.045514,0.00019738,2]
[359966223,1746453044388,-437.7262801,0.00019799,2]
[359966224,1746453044398,-200.0,0.000198,2]
[359966225,1746453044407,-200.0,0.000198,2]
[359966226,1746453044417,-225.0,0.00019834,2]
[359966227,1746453044426,-227.38278045,0.00019847,2]
[359966228,1746453044435,-500.0,0.00019847,2]
[359966229,1746453044448,-500.0,0.00019847,2]
[359966230,1746453044462,-500.0,0.00019847,2]
[359966231,1746453044472,-500.0,0.00019847,2]
[359966232,1746453044481,-500.0,0.00019847,2]
[359966233,1746453044491,-500.0,0.00019847,2]
[359966234,1746453044500,-500.0,0.00019847,2]
[359966235,1746453044509,-500.0,0.00019847,2]
[359966236,1746453044519,-500.0,0.00019847,2]
[359966237,1746453044528,-500.0,0.00019847,2]
[359966238,1746453044537,-500.0,0.00019847,2]
[359966239,1746453044547,-500.0,0.00019847,2]
[359966240,1746453044556,-500.0,0.00019847,2]
[359966241,1746453044566,-500.0,0.00019847,2]
[359966242,1746453044575,-500.0,0.00019847,2]
[359966243,1746453044585,-500.0,0.00019847,2]
[359966244,1746453044598,-500.0,0.00019847,2]
[359966245,1746453044608,-500.0,0.00019847,2]
[359966246,1746453044619,-500.0,0.00019847,2]
[359966247,1746453044629,-500.0,0.00019847,2]
[359966248,1746453044638,-500.0,0.00019847,2]
[359966249,1746453044648,-500.0,0.00019847,2]
[359966250,1746453044657,-500.0,0.00019847,2]
[359966251,1746453044667,-500.0,0.00019847,2]
[359966252,1746453044676,-500.0,0.00019847,2]
[359966253,1746453044686,-500.0,0.00019847,2]
[359966254,1746453044696,-500.0,0.00019847,2]
[359966255,1746453044705,-500.0,0.00019847,2]
[359966256,1746453044715,-500.0,0.00019847,2]
[359966257,1746453044724,-500.0,0.00019847,2]
[359966258,1746453044734,-500.0,0.00019847,2]
[359966259,1746453044744,-500.0,0.00019847,2]
[359966260,1746453044753,-500.0,0.00019847,2]
[359966261,1746453044763,-500.0,0.00019847,2]
[359966262,1746453044772,-500.0,0.00019847,2]
[359966263,1746453044782,-500.0,0.00019847,2]
[359966264,1746453044791,-500.0,0.00019847,2]
[359966265,1746453044800,-5312.79334917,0.00019848,2]
[359966266,1746453044809,-5312.79334915,0.00019852,2]
[359966267,1746453044818,-5312.79334915,0.00019856,2]
[359966268,1746453044827,-5312.79334915,0.00019861,2]
[359966269,1746453044837,-500.0,0.00019863,2]
[359966270,1746453044847,-500.0,0.00019863,2]
[359966271,1746453044857,-5312.79334915,0.00019865,2]
[359966272,1746453044867,-3340.63311703,0.00019866,2]
[359966273,1746453044877,-3340.63311696,0.00019868,2]
[359966274,1746453044887,-5312.79334915,0.00019869,2]
[359966275,1746453044897,-3340.63311696,0.0001987,2]
[359966276,1746453044906,-511.13816017,0.00019873,2]
[359966277,1746453044916,-366.33056747,0.00019873,2]
[359966278,1746453044925,-500.0,0.00019873,2]
[359966279,1746453044936,-500.0,0.00019873,2]
[359966280,1746453044946,-500.0,0.00019873,2]
[359966281,1746453044956,-500.0,0.00019873,2]
[359966282,1746453044966,-500.0,0.00019873,2]
[359966283,1746453044976,-369.11791157,0.00019873,2]
[359966284,1746453044985,-500.0,0.00019873,2]
[359966285,1746453044995,-160.17766306,0.00019873,2]
[359966286,1746453045004,-500.0,0.00019873,2]
[359966287,1746453045014,-500.0,0.00019873,2]
[359966288,1746453045024,-500.0,0.00019873,2]
[359966289,1746453045033,-162.24833343,0.00019873,2]
[359966290,1746453045043,-500.0,0.00019873,2]
[359966291,1746453045053,-3340.63311696,0.00019873,2]
[359966292,1746453045063,-5312.79334915,0.00019873,2]
[359966293,1746453045072,-3340.63311696,0.00019875,2]
[359966294,1746453045082,-3340.63311696,0.00019877,2]
[359966295,1746453045092,-5312.79334915,0.00019878,2]
[359966296,1746453045102,-3340.63311696,0.00019879,2]
[359966297,1746453045241,-3340.63311696,0.00019882,2]
[359966298,1746453045251,-5312.79334915,0.00019882,2]
[359966299,1746453045261,-3340.63311696,0.00019884,2]
[359966300,1746453045270,-1445.06,0.00019886,2]
[359966301,1746453045280,-5312.79334915,0.00019886,2]
[359966302,1746453045289,-3340.63311696,0.00019886,2]
[359966303,1746453045298,-1445.06,0.00019889,2]
[359966304,1746453045307,-509.0,0.0001989,2]
[359966305,1746453045316,-450.0,0.00019896,2]
[359966306,1746453045326,-450.0,0.00019896,2]
[359966307,1746453045335,-450.0,0.00019896,2]
[359966308,1746453045345,-450.0,0.00019896,2]
[359966309,1746453045354,-450.0,0.00019896,2]
[359966310,1746453045364,-2311.02,0.00019896,2]
[359966311,1746453045374,-450.0,0.00019896,2]
[359966312,1746453045383,-450.0,0.00019896,2]
[359966313,1746453045392,-450.0,0.00019896,2]
[359966314,1746453045401,-450.0,0.00019896,2]
[359966315,1746453045410,-450.0,0.00019896,2]
[359966316,1746453045419,-450.0,0.00019896,2]
[359966317,1746453045429,-3147.78,0.00019896,2]
[359966318,1746453045438,-400.55990545,0.00019896,2]
[359966319,1746453045447,-450.0,0.00019896,2]
[359966320,1746453045457,-495.15,0.00019896,2]
[359966321,1746453045466,-450.0,0.00019896,2]
[359966322,1746453045475,-450.0,0.00019896,2]
[359966323,1746453045484,-450.0,0.00019896,2]
[359966324,1746453045494,-2906.99,0.00019896,2]
[359966325,1746453045503,-450.0,0.00019896,2]
[359966326,1746453045512,-450.0,0.00019896,2]
[359966327,1746453045521,-450.0,0.00019896,2]
[359966328,1746453045530,-450.0,0.00019896,2]
[359966329,1746453045539,-5805.65,0.00019896,2]
[359966330,1746453045549,-450.0,0.00019896,2]
[359966331,1746453045558,-450.0,0.00019896,2]
[359966332,1746453045567,-450.0,0.00019896,2]
[359966333,1746453045577,-450.0,0.00019896,2]
[359966334,1746453045587,-450.0,0.00019896,2]
[359966335,1746453045596,-450.0,0.00019896,2]
[359966336,1746453045605,-3261.1,0.00019896,2]
[359966337,1746453045615,-450.0,0.00019896,2]
[359966338,1746453045624,-450.0,0.00019896,2]
[359966339,1746453045633,-450.0,0.00019896,2]
[359966340,1746453045642,-2566.01,0.00019896,2]
[359966341,1746453045651,-450.0,0.00019896,2]
[359966342,1746453045662,-450.0,0.00019896,2]
[359966343,1746453045671,-59706.0,0.00019896,2]
[359966345,1746453045683,-450.0,0.00019896,2]
[359966346,1746453045692,-450.0,0.00019896,2]
[359966347,1746453045701,-450.0,0.00019896,2]
[359966348,1746453045710,-450.0,0.00019896,2]
[359966349,1746453045719,-450.0,0.00019896,2]
[359966350,1746453045728,-450.0,0.00019896,2]
[359966352,1746453045737,-450.0,0.00019896,2]
[359966353,1746453045746,-450.0,0.00019896,2]
[359966354,1746453045755,-1779.88,0.00019896,2]
[359966355,1746453045764,-450.0,0.00019896,2]
[359966356,1746453045774,-450.0,0.00019896,2]
[359966357,1746453045783,-450.0,0.00019896,2]
[359966358,1746453045793,-450.0,0.00019896,2]
[359966359,1746453045802,-8505.74,0.00019896,2]
[359966360,1746453045811,-450.0,0.00019896,2]
[359966361,1746453045820,-450.0,0.00019896,2]
[359966362,1746453045829,-450.0,0.00019896,2]
[359966363,1746453045838,-744.93,0.00019896,2]
[359966364,1746453045848,-450.0,0.00019896,2]
[359966365,1746453045857,-450.0,0.00019896,2]
[359966366,1746453045865,-450.0,0.00019896,2]
[359966367,1746453045875,-450.0,0.00019896,2]
[359966368,1746453045884,-450.0,0.00019896,2]
[359966369,1746453045893,-3937.9,0.00019896,2]
[359966370,1746453045902,-450.0,0.00019896,2]
[359966371,1746453045912,-500.0,0.00019896,2]
[359966372,1746453045921,-450.0,0.00019896,2]
[359966373,1746453045931,-450.0,0.00019896,2]
[359966374,1746453045940,-16962.36,0.00019896,2]
[359966375,1746453045949,-450.0,0.00019896,2]
[359966376,1746453045958,-450.0,0.00019896,2]
[359966377,1746453045967,-449.73983441,0.00019896,2]
[359966378,1746453045977,-450.0,0.00019896,2]
[359966379,1746453045987,-450.0,0.00019896,2]
[359966380,1746453045997,-450.0,0.00019896,2]
[359966381,1746453046008,-450.0,0.00019896,2]
[359966382,1746453046018,-490.32,0.00019896,2]
[359966383,1746453046028,-450.0,0.00019896,2]
[359966384,1746453046039,-450.0,0.00019896,2]
[359966385,1746453046048,-500.0,0.00019896,2]
[359966386,1746453046057,-450.0,0.00019896,2]
[359966387,1746453046067,-689.59,0.00019896,2]
[359966388,1746453046076,-450.0,0.00019896,2]
[359966389,1746453046085,-781.77,0.00019896,2]
[359966390,1746453046094,-450.0,0.00019896,2]
[359966391,1746453046103,-450.0,0.00019896,2]
[359966392,1746453046112,-450.0,0.00019896,2]
[359966393,1746453046121,-450.0,0.00019896,2]
[359966394,1746453046130,-450.0,0.00019896,2]
[359966395,1746453046139,-450.0,0.00019896,2]
[359966396,1746453046148,-503.46,0.00019896,2]
[359966397,1746453046157,-450.0,0.00019896,2]
[359966398,1746453046167,-450.0,0.00019896,2]
[359966399,1746453046177,-450.0,0.00019896,2]
[359966400,1746453046186,-450.0,0.00019896,2]
[359966401,1746453046195,-450.0,0.00019896,2]
[359966402,1746453046207,-450.0,0.00019896,2]
[359966403,1746453046216,-450.0,0.00019896,2]
[359966404,1746453046226,-450.0,0.00019896,2]
[359966405,1746453046235,-450.0,0.00019896,2]
[359966406,1746453046247,-450.0,0.00019896,2]
[359966407,1746453046257,-1479.2,0.00019896,2]
[359966408,1746453046267,-13488.87,0.00019896,2]
[359966409,1746453046275,-450.0,0.00019896,2]
[359966410,1746453046285,-450.0,0.00019896,2]
[359966411,1746453046296,-450.0,0.00019896,2]
[359966412,1746453046306,-450.0,0.00019896,2]
[359966413,1746453046316,-450.0,0.00019896,2]
[359966415,1746453046326,-1167.69,0.00019896,2]
[359966417,1746453046335,-450.0,0.00019896,2]
[359966418,1746453046344,-450.0,0.00019896,2]
[359966419,1746453046353,-450.0,0.00019896,2]
[359966420,1746453046362,-450.0,0.00019896,2]
[359966421,1746453046371,-450.0,0.00019896,2]
[359966422,1746453046380,-450.0,0.00019896,2]
[359966423,1746453046389,-450.0,0.00019896,2]
[359966424,1746453046398,-450.0,0.00019896,2]
[359966425,1746453046407,-450.0,0.00019896,2]
[359966426,1746453046416,-450.0,0.00019896,2]
[359966427,1746453046426,-450.0,0.00019897,2]
[359966428,1746453046436,-450.0,0.00019897,2]